[Event "Titled Tuesday Blitz August 08 Early 2023"]
[White "Vyatkin, Dmitry"]
[Black "Tarhan, Adar"]
[WhiteFideId "4171900"]
[BlackFideId "34544712"]
[WhiteElo "2520"]
[BlackElo "2639"]
[Result "0-1"]
[Round "6"]
[TimeControl "180+1"]
[Date "2023.08.08"]
[WhiteClock "0:00:00"]
[BlackClock "0:00:09"]
[Board "91"]

1. d4 {[%clk 0:02:58]}  Nf6 {[%clk 0:02:53]} 2. c4 {[%clk 0:02:58]}  c6 {[%clk 0:02:49]} 3. Nf3 {[%clk 0:02:53]}  d5 {[%clk 0:02:48]} 4. g3 {[%clk 0:02:53]}  g6 {[%clk 0:02:47]} 5. Bg2 {[%clk 0:02:53]}  Bg7 {[%clk 0:02:46]} 6. O-O {[%clk 0:02:54]}  O-O {[%clk 0:02:45]} 7. b3 {[%clk 0:02:54]}  a5 {[%clk 0:02:43]} 8. Nc3 {[%clk 0:02:45]}  Ne4 {[%clk 0:02:39]} 9. Bb2 {[%clk 0:02:42]}  Bf5 {[%clk 0:02:00]} 10. Nh4 {[%clk 0:02:35]}  Nxc3 {[%clk 0:01:56]} 11. Bxc3 {[%clk 0:02:35]}  Be6 {[%clk 0:01:46]} 12. Qd3 {[%clk 0:02:26]}  Na6 {[%clk 0:01:40]} 13. cxd5 {[%clk 0:02:17]}  cxd5 {[%clk 0:01:39]} 14. Qb5 {[%clk 0:02:16]}  b6 {[%clk 0:01:28]} 15. Rac1 {[%clk 0:02:11]}  Qd6 {[%clk 0:01:27]} 16. Bb2 {[%clk 0:01:47]}  Nb4 {[%clk 0:01:06]} 17. Ba3 {[%clk 0:01:29]}  Bxd4 {[%clk 0:01:00]} 18. Rfd1 {[%clk 0:01:25]}  Bc5 {[%clk 0:00:59]} 19. e4 {[%clk 0:00:53]}  d4 {[%clk 0:00:51]} 20. Bxb4 {[%clk 0:00:41]}  axb4 {[%clk 0:00:50]} 21. Qe2 {[%clk 0:00:34]}  Ra5 {[%clk 0:00:43]} 22. e5 {[%clk 0:00:30]}  Qd7 {[%clk 0:00:43]} 23. Rd2 {[%clk 0:00:28]}  Bg4 {[%clk 0:00:29]} 24. Nf3 {[%clk 0:00:25]}  Rfa8 {[%clk 0:00:29]} 25. Rcd1 {[%clk 0:00:19]}  Qa7 {[%clk 0:00:26]} 26. h3 {[%clk 0:00:15]}  Bxf3 {[%clk 0:00:19]} 27. Bxf3 {[%clk 0:00:14]}  Rd8 {[%clk 0:00:19]} 28. h4 {[%clk 0:00:11]}  e6 {[%clk 0:00:19]} 29. h5 {[%clk 0:00:11]}  Qe7 {[%clk 0:00:19]} 30. hxg6 {[%clk 0:00:11]}  hxg6 {[%clk 0:00:20]} 31. Be4 {[%clk 0:00:09]}  Kg7 {[%clk 0:00:21]} 32. Kg2 {[%clk 0:00:08]}  Rh8 {[%clk 0:00:18]} 33. Rh1 {[%clk 0:00:05]}  Rxh1 {[%clk 0:00:18]} 34. Kxh1 {[%clk 0:00:06]}  Qg5 {[%clk 0:00:19]} 35. Kg2 {[%clk 0:00:07]}  Qxe5 {[%clk 0:00:18]} 36. Qf3 {[%clk 0:00:07]}  Ra7 {[%clk 0:00:16]} 37. Re2 {[%clk 0:00:06]}  Qf6 {[%clk 0:00:15]} 38. Qd3 {[%clk 0:00:06]}  Qd8 {[%clk 0:00:13]} 39. Qf3 {[%clk 0:00:04]}  Re7 {[%clk 0:00:12]} 40. Bd3 {[%clk 0:00:04]}  Qd6 {[%clk 0:00:09]} 41. g4 {[%clk 0:00:04]}  f5 {[%clk 0:00:08]} 42. gxf5 {[%clk 0:00:00]}  gxf5 {[%clk 0:00:09]} 0-1


[Site "https://www.chess.com"]

[Event "Titled Tuesday Blitz August 08 Early 2023"]
[White "Garcia Ramos, Daniel"]
[Black "Kuznetsov, Mikhail"]
[WhiteFideId "32010311"]
[BlackFideId "4117190"]
[WhiteElo "2624"]
[BlackElo "2493"]
[Result "1-0"]
[Round "6"]
[TimeControl "180+1"]
[Date "2023.08.08"]
[WhiteClock "0:00:33"]
[BlackClock "0:00:02"]
[Board "96"]

1. e4 {[%clk 0:02:58]}  c6 {[%clk 0:02:59]} 2. d4 {[%clk 0:02:54]}  d5 {[%clk 0:03:00]} 3. Nd2 {[%clk 0:02:52]}  dxe4 {[%clk 0:02:58]} 4. Nxe4 {[%clk 0:02:53]}  Nf6 {[%clk 0:02:58]} 5. Nxf6+ {[%clk 0:02:52]}  exf6 {[%clk 0:02:59]} 6. c3 {[%clk 0:02:53]}  Bd6 {[%clk 0:02:59]} 7. Bd3 {[%clk 0:02:54]}  O-O {[%clk 0:02:59]} 8. Qc2 {[%clk 0:02:54]}  Kh8 {[%clk 0:02:59]} 9. Ne2 {[%clk 0:02:52]}  Re8 {[%clk 0:02:59]} 10. O-O {[%clk 0:02:47]}  Nd7 {[%clk 0:02:58]} 11. Bf4 {[%clk 0:02:37]}  Nf8 {[%clk 0:02:57]} 12. Rae1 {[%clk 0:02:34]}  Rxe2 {[%clk 0:02:10]} 13. Qxe2 {[%clk 0:02:33]}  Bxf4 {[%clk 0:02:09]} 14. Qe7 {[%clk 0:02:34]}  Qxe7 {[%clk 0:01:57]} 15. Rxe7 {[%clk 0:02:34]}  Be6 {[%clk 0:01:42]} 16. Rxb7 {[%clk 0:02:33]}  Nd7 {[%clk 0:01:42]} 17. c4 {[%clk 0:02:20]}  Nb6 {[%clk 0:01:30]} 18. b3 {[%clk 0:02:03]}  Kg8 {[%clk 0:01:26]} 19. Be4 {[%clk 0:02:03]}  Bc8 {[%clk 0:01:13]} 20. Bxc6 {[%clk 0:01:48]}  Bxb7 {[%clk 0:01:12]} 21. Bxb7 {[%clk 0:01:49]}  Rd8 {[%clk 0:01:09]} 22. Rd1 {[%clk 0:01:47]}  Kf8 {[%clk 0:00:55]} 23. Bf3 {[%clk 0:01:46]}  Bc7 {[%clk 0:00:48]} 24. Kf1 {[%clk 0:01:35]}  Nc8 {[%clk 0:00:48]} 25. c5 {[%clk 0:01:33]}  Ne7 {[%clk 0:00:37]} 26. d5 {[%clk 0:01:32]}  Nf5 {[%clk 0:00:36]} 27. b4 {[%clk 0:01:28]}  Rb8 {[%clk 0:00:31]} 28. a3 {[%clk 0:01:24]}  a5 {[%clk 0:00:15]} 29. d6 {[%clk 0:01:23]}  Bxd6 {[%clk 0:00:15]} 30. cxd6 {[%clk 0:01:22]}  axb4 {[%clk 0:00:16]} 31. axb4 {[%clk 0:01:13]}  Ke8 {[%clk 0:00:16]} 32. b5 {[%clk 0:01:11]}  Kd8 {[%clk 0:00:13]} 33. Bc6 {[%clk 0:01:11]}  g6 {[%clk 0:00:10]} 34. g4 {[%clk 0:01:02]}  Ng7 {[%clk 0:00:08]} 35. f4 {[%clk 0:00:53]}  Ne6 {[%clk 0:00:07]} 36. f5 {[%clk 0:00:53]}  Ng7 {[%clk 0:00:07]} 37. Re1 {[%clk 0:00:51]}  gxf5 {[%clk 0:00:06]} 38. gxf5 {[%clk 0:00:51]}  h5 {[%clk 0:00:04]} 39. Re7 {[%clk 0:00:50]}  Rc8 {[%clk 0:00:03]} 40. Rxf7 {[%clk 0:00:38]}  Ne8 {[%clk 0:00:02]} 41. Rd7# {[%clk 0:00:33]} 1-0


[Site "https://www.chess.com"]

[Event "Titled Tuesday Blitz August 08 Early 2023"]
[White "Goldin, Alexander"]
[Black "Kirillov, Dmitry"]
[WhiteFideId "2019540"]
[BlackFideId "34180572"]
[WhiteElo "2611"]
[BlackElo "2453"]
[Result "1-0"]
[Round "6"]
[TimeControl "180+1"]
[Date "2023.08.08"]
[WhiteClock "0:00:16"]
[BlackClock "0:00:00"]
[Board "101"]

1. Nf3 {[%clk 0:02:56]}  d5 {[%clk 0:02:59]} 2. g3 {[%clk 0:02:56]}  g6 {[%clk 0:02:59]} 3. Bg2 {[%clk 0:02:56]}  Bg7 {[%clk 0:03:00]} 4. d4 {[%clk 0:02:56]}  Nf6 {[%clk 0:03:00]} 5. O-O {[%clk 0:02:57]}  O-O {[%clk 0:03:01]} 6. Be3 {[%clk 0:02:57]}  c6 {[%clk 0:02:56]} 7. Qc1 {[%clk 0:02:57]}  Bf5 {[%clk 0:02:45]} 8. c4 {[%clk 0:02:54]}  dxc4 {[%clk 0:02:38]} 9. Qxc4 {[%clk 0:02:50]}  Nbd7 {[%clk 0:02:34]} 10. Nc3 {[%clk 0:02:38]}  Ne4 {[%clk 0:02:15]} 11. Rfd1 {[%clk 0:02:14]}  Nxc3 {[%clk 0:02:12]} 12. bxc3 {[%clk 0:02:13]}  Nb6 {[%clk 0:01:57]} 13. Qb3 {[%clk 0:02:07]}  Be4 {[%clk 0:01:56]} 14. c4 {[%clk 0:01:59]}  Qc8 {[%clk 0:01:20]} 15. Rac1 {[%clk 0:01:56]}  h6 {[%clk 0:01:16]} 16. a4 {[%clk 0:01:47]}  Nd7 {[%clk 0:01:03]} 17. Bh3 {[%clk 0:01:44]}  g5 {[%clk 0:00:51]} 18. Nd2 {[%clk 0:01:24]}  Bg6 {[%clk 0:00:47]} 19. c5 {[%clk 0:01:15]}  Kh7 {[%clk 0:00:44]} 20. Nc4 {[%clk 0:01:14]}  f5 {[%clk 0:00:41]} 21. f4 {[%clk 0:01:11]}  g4 {[%clk 0:00:33]} 22. Bg2 {[%clk 0:01:11]}  Bf7 {[%clk 0:00:33]} 23. Qc2 {[%clk 0:01:08]}  Bd5 {[%clk 0:00:28]} 24. Bf2 {[%clk 0:00:57]}  Nf6 {[%clk 0:00:26]} 25. Ne3 {[%clk 0:00:50]}  Bxg2 {[%clk 0:00:25]} 26. Kxg2 {[%clk 0:00:50]}  e6 {[%clk 0:00:20]} 27. h3 {[%clk 0:00:49]}  h5 {[%clk 0:00:20]} 28. Rh1 {[%clk 0:00:48]}  Kg6 {[%clk 0:00:20]} 29. hxg4 {[%clk 0:00:45]}  hxg4 {[%clk 0:00:21]} 30. Rh4 {[%clk 0:00:45]}  Rh8 {[%clk 0:00:19]} 31. Rch1 {[%clk 0:00:41]}  Qd7 {[%clk 0:00:14]} 32. Nxg4 {[%clk 0:00:33]}  Qd5+ {[%clk 0:00:13]} 33. Kg1 {[%clk 0:00:33]}  Qxh1+ {[%clk 0:00:06]} 34. Rxh1 {[%clk 0:00:29]}  Rxh1+ {[%clk 0:00:06]} 35. Kxh1 {[%clk 0:00:29]}  Nxg4 {[%clk 0:00:07]} 36. Bg1 {[%clk 0:00:28]}  Rd8 {[%clk 0:00:06]} 37. e3 {[%clk 0:00:28]}  Nf6 {[%clk 0:00:05]} 38. Qb3 {[%clk 0:00:27]}  Rd7 {[%clk 0:00:04]} 39. Qxe6 {[%clk 0:00:27]}  Rd5 {[%clk 0:00:02]} 40. Kg2 {[%clk 0:00:25]}  Rd7 {[%clk 0:00:02]} 41. Kf3 {[%clk 0:00:25]}  Rf7 {[%clk 0:00:03]} 42. Bf2 {[%clk 0:00:22]}  Rf8 {[%clk 0:00:02]} 43. Qb3 {[%clk 0:00:19]}  Re8 {[%clk 0:00:03]} 44. Be1 {[%clk 0:00:19]}  Re7 {[%clk 0:00:03]} 45. Ba5 {[%clk 0:00:19]}  a6 {[%clk 0:00:03]} 46. Bd8 {[%clk 0:00:18]}  Rf7 {[%clk 0:00:02]} 47. Qe6 {[%clk 0:00:17]}  Rf8 {[%clk 0:00:00]} 48. Be7 {[%clk 0:00:16]} 1-0


[Site "https://www.chess.com"]

[Event "Titled Tuesday Blitz August 08 Early 2023"]
[White "Bilan, Danila"]
[Black "Devaev, Alexander"]
[WhiteFideId "24161918"]
[BlackFideId "4169395"]
[WhiteElo "2605"]
[BlackElo "2453"]
[Result "0-1"]
[Round "6"]
[TimeControl "180+1"]
[Date "2023.08.08"]
[WhiteClock "0:00:00"]
[BlackClock "0:01:01"]
[Board "102"]

1. d4 {[%clk 0:03:00]}  Nf6 {[%clk 0:02:56]} 2. Nf3 {[%clk 0:03:01]}  e6 {[%clk 0:02:56]} 3. g3 {[%clk 0:03:00]}  c5 {[%clk 0:02:55]} 4. Bg2 {[%clk 0:03:00]}  Nc6 {[%clk 0:02:56]} 5. O-O {[%clk 0:03:00]}  Be7 {[%clk 0:02:56]} 6. c4 {[%clk 0:03:00]}  cxd4 {[%clk 0:02:57]} 7. Nxd4 {[%clk 0:03:00]}  O-O {[%clk 0:02:58]} 8. Nc3 {[%clk 0:03:01]}  Ne5 {[%clk 0:02:58]} 9. b3 {[%clk 0:03:00]}  d6 {[%clk 0:02:58]} 10. Bb2 {[%clk 0:02:58]}  a6 {[%clk 0:02:58]} 11. Rc1 {[%clk 0:02:55]}  Qc7 {[%clk 0:02:58]} 12. Qd2 {[%clk 0:02:53]}  Rb8 {[%clk 0:02:56]} 13. h3 {[%clk 0:02:51]}  Re8 {[%clk 0:02:56]} 14. Kh2 {[%clk 0:02:46]}  Bf8 {[%clk 0:02:55]} 15. e4 {[%clk 0:02:43]}  b6 {[%clk 0:02:53]} 16. f4 {[%clk 0:02:43]}  Ng6 {[%clk 0:02:54]} 17. g4 {[%clk 0:02:17]}  h6 {[%clk 0:02:48]} 18. Nce2 {[%clk 0:02:04]}  Bb7 {[%clk 0:02:44]} 19. Ng3 {[%clk 0:02:03]}  Nd7 {[%clk 0:02:23]} 20. f5 {[%clk 0:01:28]}  Nge5 {[%clk 0:02:22]} 21. g5 {[%clk 0:01:28]}  hxg5 {[%clk 0:02:22]} 22. Qxg5 {[%clk 0:01:29]}  Qd8 {[%clk 0:02:09]} 23. Qxd8 {[%clk 0:01:20]}  Rbxd8 {[%clk 0:02:08]} 24. Rcd1 {[%clk 0:01:20]}  Nc5 {[%clk 0:02:06]} 25. Bc3 {[%clk 0:01:04]}  Rc8 {[%clk 0:02:00]} 26. f6 {[%clk 0:00:48]}  g6 {[%clk 0:01:42]} 27. h4 {[%clk 0:00:47]}  Ncd7 {[%clk 0:01:38]} 28. Bh3 {[%clk 0:00:40]}  b5 {[%clk 0:01:35]} 29. h5 {[%clk 0:00:38]}  g5 {[%clk 0:01:30]} 30. Nf3 {[%clk 0:00:24]}  Nxf3+ {[%clk 0:01:27]} 31. Rxf3 {[%clk 0:00:24]}  bxc4 {[%clk 0:01:27]} 32. b4 {[%clk 0:00:24]}  Ne5 {[%clk 0:01:24]} 33. Rff1 {[%clk 0:00:18]}  Red8 {[%clk 0:01:12]} 34. a3 {[%clk 0:00:18]}  Bh6 {[%clk 0:01:10]} 35. Rf2 {[%clk 0:00:14]}  Bc6 {[%clk 0:01:04]} 36. Rg1 {[%clk 0:00:09]}  Kh7 {[%clk 0:01:02]} 37. Bg2 {[%clk 0:00:00]}  Ng4+ {[%clk 0:01:01]} 0-1


[Site "https://www.chess.com"]

[Event "Titled Tuesday Blitz August 08 Early 2023"]
[White "Jumanov, Elbek"]
[Black "Liyanage, Ranindu Dilshan"]
[WhiteFideId "14202905"]
[BlackFideId "9915834"]
[WhiteElo "2431"]
[BlackElo "2601"]
[Result "1-0"]
[Round "6"]
[TimeControl "180+1"]
[Date "2023.08.08"]
[WhiteClock "0:00:14"]
[BlackClock "0:00:00"]
[Board "103"]

1. c4 {[%clk 0:03:00]}  e6 {[%clk 0:03:00]} 2. Nf3 {[%clk 0:03:00]}  d5 {[%clk 0:03:00]} 3. d4 {[%clk 0:02:59]}  Nf6 {[%clk 0:03:00]} 4. g3 {[%clk 0:03:00]}  Bb4+ {[%clk 0:03:01]} 5. Bd2 {[%clk 0:02:59]}  a5 {[%clk 0:03:01]} 6. Bg2 {[%clk 0:02:59]}  O-O {[%clk 0:03:02]} 7. O-O {[%clk 0:02:59]}  dxc4 {[%clk 0:03:02]} 8. Qc2 {[%clk 0:02:58]}  Bxd2 {[%clk 0:03:02]} 9. Nbxd2 {[%clk 0:02:57]}  b5 {[%clk 0:03:02]} 10. a4 {[%clk 0:02:50]}  c6 {[%clk 0:03:02]} 11. e3 {[%clk 0:02:40]}  Nbd7 {[%clk 0:02:40]} 12. Ng5 {[%clk 0:02:36]}  Ra6 {[%clk 0:02:25]} 13. Rfc1 {[%clk 0:02:13]}  h6 {[%clk 0:02:21]} 14. Nge4 {[%clk 0:02:10]}  Nd5 {[%clk 0:02:20]} 15. Nc3 {[%clk 0:01:47]}  Nb4 {[%clk 0:02:04]} 16. Qd1 {[%clk 0:01:44]}  Nd3 {[%clk 0:02:02]} 17. Rcb1 {[%clk 0:01:44]}  b4 {[%clk 0:01:08]} 18. Nce4 {[%clk 0:01:18]}  Nb6 {[%clk 0:00:55]} 19. b3 {[%clk 0:00:53]}  c3 {[%clk 0:00:40]} 20. Nf3 {[%clk 0:00:29]}  Nb2 {[%clk 0:00:38]} 21. Qc2 {[%clk 0:00:27]}  Nd7 {[%clk 0:00:36]} 22. Nxc3 {[%clk 0:00:25]}  bxc3 {[%clk 0:00:33]} 23. Qxc3 {[%clk 0:00:26]}  Nxa4 {[%clk 0:00:33]} 24. bxa4 {[%clk 0:00:25]}  Rb6 {[%clk 0:00:26]} 25. Nd2 {[%clk 0:00:24]}  Rxb1+ {[%clk 0:00:10]} 26. Rxb1 {[%clk 0:00:23]}  c5 {[%clk 0:00:09]} 27. dxc5 {[%clk 0:00:21]}  Nxc5 {[%clk 0:00:09]} 28. Qxc5 {[%clk 0:00:18]}  Qxd2 {[%clk 0:00:09]} 29. Rb8 {[%clk 0:00:15]}  g6 {[%clk 0:00:00]} 30. Rxc8 {[%clk 0:00:14]} 1-0


[Site "https://www.chess.com"]

[Event "Titled Tuesday Blitz August 08 Early 2023"]
[White "Ziatdinov, Raset"]
[Black "Heinemann, Josefine"]
[WhiteFideId "2015323"]
[BlackFideId "12900460"]
[WhiteElo "2340"]
[BlackElo "2598"]
[Result "0-1"]
[Round "6"]
[TimeControl "180+1"]
[Date "2023.08.08"]
[WhiteClock "0:00:11"]
[BlackClock "0:00:59"]
[Board "106"]

1. e4 {[%clk 0:03:00]}  c5 {[%clk 0:02:50]} 2. Nf3 {[%clk 0:02:58]}  d6 {[%clk 0:02:48]} 3. d4 {[%clk 0:02:58]}  cxd4 {[%clk 0:02:47]} 4. Nxd4 {[%clk 0:02:59]}  Nf6 {[%clk 0:02:47]} 5. Nc3 {[%clk 0:02:58]}  a6 {[%clk 0:02:47]} 6. f3 {[%clk 0:02:57]}  e5 {[%clk 0:02:47]} 7. Nb3 {[%clk 0:02:56]}  Be6 {[%clk 0:02:47]} 8. Be3 {[%clk 0:02:56]}  h5 {[%clk 0:02:46]} 9. Qd2 {[%clk 0:02:54]}  Nbd7 {[%clk 0:02:46]} 10. O-O-O {[%clk 0:02:52]}  Be7 {[%clk 0:02:45]} 11. Be2 {[%clk 0:02:40]}  Rc8 {[%clk 0:02:43]} 12. Nd5 {[%clk 0:02:38]}  Bxd5 {[%clk 0:02:41]} 13. exd5 {[%clk 0:02:39]}  Nb6 {[%clk 0:02:39]} 14. Qa5 {[%clk 0:02:36]}  Nc4 {[%clk 0:02:33]} 15. Qxd8+ {[%clk 0:02:34]}  Bxd8 {[%clk 0:02:34]} 16. Bf2 {[%clk 0:02:27]}  Bb6 {[%clk 0:02:25]} 17. Bxb6 {[%clk 0:02:09]}  Nxb6 {[%clk 0:02:24]} 18. Na5 {[%clk 0:02:09]}  Rc7 {[%clk 0:02:23]} 19. Kb1 {[%clk 0:02:00]}  Nbxd5 {[%clk 0:02:21]} 20. c4 {[%clk 0:01:58]}  Nf4 {[%clk 0:02:21]} 21. Bf1 {[%clk 0:01:46]}  Ke7 {[%clk 0:02:20]} 22. g3 {[%clk 0:01:41]}  Ne6 {[%clk 0:02:20]} 23. Bh3 {[%clk 0:01:33]}  Nd4 {[%clk 0:02:20]} 24. f4 {[%clk 0:01:31]}  b6 {[%clk 0:01:36]} 25. fxe5 {[%clk 0:01:17]}  dxe5 {[%clk 0:01:35]} 26. Nb3 {[%clk 0:01:17]}  Nxb3 {[%clk 0:01:35]} 27. axb3 {[%clk 0:01:18]}  Rd8 {[%clk 0:01:25]} 28. Rhe1 {[%clk 0:01:02]}  Rxd1+ {[%clk 0:01:23]} 29. Rxd1 {[%clk 0:01:03]}  Ne8 {[%clk 0:01:17]} 30. Kc2 {[%clk 0:00:51]}  g6 {[%clk 0:01:16]} 31. Kc3 {[%clk 0:00:49]}  f5 {[%clk 0:01:16]} 32. Bg2 {[%clk 0:00:49]}  e4 {[%clk 0:01:15]} 33. h3 {[%clk 0:00:47]}  Nf6 {[%clk 0:01:15]} 34. b4 {[%clk 0:00:43]}  Rd7 {[%clk 0:01:14]} 35. Rxd7+ {[%clk 0:00:41]}  Nxd7 {[%clk 0:01:13]} 36. Kd4 {[%clk 0:00:40]}  Kd6 {[%clk 0:01:13]} 37. g4 {[%clk 0:00:38]}  a5 {[%clk 0:01:10]} 38. bxa5 {[%clk 0:00:26]}  bxa5 {[%clk 0:01:10]} 39. gxh5 {[%clk 0:00:25]}  gxh5 {[%clk 0:01:10]} 40. h4 {[%clk 0:00:26]}  Nc5 {[%clk 0:01:03]} 41. Bh3 {[%clk 0:00:24]}  Ne6+ {[%clk 0:01:03]} 42. Kc3 {[%clk 0:00:21]}  Ke5 {[%clk 0:01:04]} 43. b4 {[%clk 0:00:17]}  axb4+ {[%clk 0:01:03]} 44. Kxb4 {[%clk 0:00:18]}  f4 {[%clk 0:01:02]} 45. c5 {[%clk 0:00:17]}  e3 {[%clk 0:00:59]} 46. Bf1 {[%clk 0:00:16]}  f3 {[%clk 0:00:59]} 47. Kc3 {[%clk 0:00:15]}  e2 {[%clk 0:00:57]} 48. Bxe2 {[%clk 0:00:15]}  fxe2 {[%clk 0:00:58]} 49. Kd2 {[%clk 0:00:16]}  Nf4 {[%clk 0:00:59]} 50. c6 {[%clk 0:00:11]}  Kd6 {[%clk 0:00:59]} 0-1


[Site "https://www.chess.com"]

[Event "Titled Tuesday Blitz August 08 Early 2023"]
[White "Toropov, Pavel"]
[Black "LionKing2367890"]
[WhiteFideId "24129178"]
[WhiteElo "2583"]
[BlackElo "2228"]
[Result "1-0"]
[Round "6"]
[TimeControl "180+1"]
[Date "2023.08.08"]
[WhiteClock "0:01:11"]
[BlackClock "0:02:28"]
[Board "109"]

1. e4 {[%clk 0:03:00]}  e5 {[%clk 0:02:59]} 2. Nf3 {[%clk 0:03:00]}  Nc6 {[%clk 0:02:59]} 3. d4 {[%clk 0:03:01]}  exd4 {[%clk 0:02:59]} 4. Nxd4 {[%clk 0:03:02]}  Nf6 {[%clk 0:02:59]} 5. Nc3 {[%clk 0:03:02]}  Bb4 {[%clk 0:02:58]} 6. Nxc6 {[%clk 0:03:01]}  bxc6 {[%clk 0:02:58]} 7. Bd3 {[%clk 0:02:59]}  d5 {[%clk 0:02:57]} 8. exd5 {[%clk 0:02:59]}  cxd5 {[%clk 0:02:58]} 9. O-O {[%clk 0:02:59]}  O-O {[%clk 0:02:59]} 10. Bg5 {[%clk 0:02:59]}  Be7 {[%clk 0:02:55]} 11. h3 {[%clk 0:02:57]}  c6 {[%clk 0:02:55]} 12. Re1 {[%clk 0:02:56]}  h6 {[%clk 0:02:55]} 13. Bf4 {[%clk 0:02:49]}  Bd6 {[%clk 0:02:52]} 14. Qf3 {[%clk 0:02:48]}  Qc7 {[%clk 0:02:49]} 15. Bxh6 {[%clk 0:02:41]}  gxh6 {[%clk 0:02:45]} 16. Qxf6 {[%clk 0:02:40]}  Bf4 {[%clk 0:02:41]} 17. Re7 {[%clk 0:01:18]}  Qd6 {[%clk 0:02:28]} 18. Bh7+ {[%clk 0:01:11]} 1-0


[Site "https://www.chess.com"]

[Event "Titled Tuesday Blitz August 08 Early 2023"]
[White "Glavina, Pablo"]
[Black "Javakhadze, Zurab"]
[WhiteFideId "100234"]
[BlackFideId "13603647"]
[WhiteElo "2510"]
[BlackElo "2793"]
[Result "0-1"]
[Round "6"]
[TimeControl "180+1"]
[Date "2023.08.08"]
[WhiteClock "0:02:13"]
[BlackClock "0:00:49"]
[Board "112"]

1. c4 {[%clk 0:02:56]}  e5 {[%clk 0:02:59]} 2. Nc3 {[%clk 0:02:56]}  Nf6 {[%clk 0:02:56]} 3. Nf3 {[%clk 0:02:56]}  Nc6 {[%clk 0:02:55]} 4. g3 {[%clk 0:02:56]}  Bc5 {[%clk 0:02:54]} 5. Nxe5 {[%clk 0:02:55]}  Nxe5 {[%clk 0:02:49]} 6. d4 {[%clk 0:02:55]}  Qe7 {[%clk 0:02:49]} 7. dxe5 {[%clk 0:02:53]}  Ng4 {[%clk 0:02:36]} 8. e3 {[%clk 0:02:52]}  Nxe5 {[%clk 0:02:35]} 9. Bg2 {[%clk 0:02:50]}  Nxc4 {[%clk 0:02:21]} 10. O-O {[%clk 0:02:48]}  c6 {[%clk 0:02:16]} 11. e4 {[%clk 0:02:42]}  O-O {[%clk 0:02:13]} 12. Qb3 {[%clk 0:02:42]}  Ne5 {[%clk 0:02:10]} 13. Bf4 {[%clk 0:02:41]}  d6 {[%clk 0:02:07]} 14. Rad1 {[%clk 0:02:39]}  Bg4 {[%clk 0:02:04]} 15. Rd2 {[%clk 0:02:37]}  Ng6 {[%clk 0:01:53]} 16. h3 {[%clk 0:02:31]}  Be6 {[%clk 0:01:51]} 17. Qc2 {[%clk 0:02:28]}  Nxf4 {[%clk 0:01:51]} 18. gxf4 {[%clk 0:02:29]}  f5 {[%clk 0:01:40]} 19. Re1 {[%clk 0:02:26]}  Qh4 {[%clk 0:01:37]} 20. exf5 {[%clk 0:02:21]}  Bxf5 {[%clk 0:01:35]} 21. Qb3+ {[%clk 0:02:21]}  Kh8 {[%clk 0:01:13]} 22. Qxb7 {[%clk 0:02:16]}  Bxh3 {[%clk 0:01:01]} 23. Qxc6 {[%clk 0:02:15]}  Qxf4 {[%clk 0:00:55]} 24. Rde2 {[%clk 0:02:13]}  Bxf2+ {[%clk 0:00:54]} 25. Kh1 {[%clk 0:02:12]}  Bxg2+ {[%clk 0:00:49]} 26. Qxg2 {[%clk 0:02:13]} 0-1


[Site "https://www.chess.com"]